[Event "Vienna Chess Open 2019"]
[Site "Vienna"]
[Date "2019.08.17"]
[Round "1.10"]
[White "Mesaros, Florian"]
[Black "Varshini, V."]
[Result "1-0"]
[ECO "D35"]
[WhiteElo "2420"]
[BlackElo "2128"]
[Annotator "NA"]
[PlyCount "105"]
[EventDate "2019.08.17"]
[EventType "swiss"]
[EventCountry "AUT"]
[SourceTitle "playchess.com"]
[Source "ChessBase"]
[SourceQuality "1"]
[TimeControl "40/5400+30:1800+30"]

1. d4 {[%emt 0:00:00]} d5 {[%emt 0:00:00]} 2. c4 {[%emt 0:00:00]} e6 {[%emt 0:00:04]} 3. Nc3 {[%emt 0:00:00]} Nf6 {[%emt 0:00:07]} 4. cxd5 {[%emt 0:00:00]} exd5 {[%emt 0:00:08]} 5. Bg5 {[%emt 0:00:03]} Be7 {[%emt 0:00:14]} 6. e3 {[%emt 0:00:08]} O-O {[%emt 0:00:28]} 7. Bd3 {[%emt 0:00:14]} Nbd7 {[%emt 0:00:43]} 8. Nge2 {[%emt 0:00:22]} c6 {[%emt 0:01:20]} 9. O-O {[%emt 0:00:27]} Re8 {[%emt 0:00:51]} 10. f3 {[%emt 0:01:36]} Nf8 {[%emt 0:02:09]} 11. Qc2 {[%emt 0:03:36]} g6 {[%emt 0:06:14]} 12. Rad1 {[%emt 0:03:28]} Ne6 {[%emt 0:04:58]} 13. Bh4 {[%emt 0:05:50]} Ng7 {[%emt 0:01:32]} 14. e4 {[%emt 0:04:22]} dxe4 {[%emt 0:10:54]} 15. fxe4 {[%emt 0:01:02]} Ng4 {[%emt 0:08:47]} 16. Bxe7 {[%emt 0:00:19]} Qc7 {[%emt 0:06:55]} 17. e5 {[%emt 0:04:16]} Qxe7 {[%emt 0:05:46]} 18. Qc1 {[%emt 0:04:56]} Qh4 {[%emt 0:15:16]} 19. h3 {[%emt 0:11:01]} Nh6 {[%emt 0:03:57]} 20. Ne4 {[%emt 0:00:37]} Nhf5 {[%emt 0:07:55]} 21. Rf4 {[%emt 0:06:50]} Qh6 {[%emt 0:04:38]} 22. Nf6+ {[%emt 0:05:50]} Kf8 {[%emt 0:03:06]} 23. Nxe8 {[%emt 0:03:20]} Kxe8 {[%emt 0:01:47]} 24. Be4 {[%emt 0:04:49]} Ne6 {[%emt 0:02:48]} 25. Rf2 {[%emt 0:02:49]} Nexd4 {[%emt 0:06:15]} 26. Nxd4 {[%emt 0:05:04]} Qxc1 {[%emt 0:00:06]} 27. Rxc1 {[%emt 0:00:07]} Nxd4 {[%emt 0:00:06]} 28. Rd2 {[%emt 0:00:12]} Ne6 {[%emt 0:02:30]} 29. Rxc6 {[%emt 0:00:18]} Ng5 {[%emt 0:01:37]} 30. Bd5 {[%emt 0:04:15]} Be6 {[%emt 0:01:06]} 31. Rc4 {[%emt 0:01:26]} Rd8 {[%emt 0:01:15]} 32. Rcd4 {[%emt 0:00:06]} Bxd5 {[%emt 0:01:43]} 33. Rxd5 {[%emt 0:00:03]} Ne6 {[%emt 0:00:22]} 34. Kf2 {[%emt 0:01:15]} Rc8 {[%emt 0:00:34]} 35. Ke3 {[%emt 0:01:48]} Rc7 {[%emt 0:00:16]} 36. R5d3 {[%emt 0:04:57]} Rc5 {[%emt 0:00:40]} 37. Rd5 {[%emt 0:00:37]} Rc7 {[%emt 0:00:09]} 38. g4 {[%emt 0:00:36]} g5 {[%emt 0:01:07]} 39. h4 {[%emt 0:03:08]} h6 {[%emt 0:00:13]} 40. h5 {[%emt 0:00:20]} a6 {[%emt 0:00:46]} 41. Kf3 {[%emt 0:31:49]} Rc4 {[%emt 0:05:35]} 42. R2d3 {[%emt 0:00:00]} Kf8 {[%emt 0:15:18]} 43. Rc3 {[%emt 0:00:00]} Rb4 {[%emt 0:02:32]} 44. Rc8+ {[%emt 0:00:00]} Kg7 {[%emt 0:03:29]} 45. Rd7 {[%emt 0:00:00]} Rb5 {[%emt 0:04:25]} 46. Rb8 {[%emt 0:00:00]} Rxb2 {[%emt 0:01:29]} 47. Rbxb7 {[%emt 0:00:00]} Rxa2 {[%emt 0:00:40]} 48. Rxf7+ {[%emt 0:00:00]} Kg8 {[%emt 0:00:13]} 49. Rfe7 {[%emt 0:00:00]} Ra3+ {[%emt 0:00:20]} 50. Kf2 {[%emt 0:00:00]} Ra2+ {[%emt 0:00:41]} 51. Ke3 {[%emt 0:00:00]} Ra3+ {[%emt 0:00:06]} 52. Kd2 {[%emt 0:00:00]} Nf8 {[%emt 0:00:13]} 53. Re8 {[%emt 0:00:00]} 1-0

[Event "Vienna Chess Open 2019"]
[Site "Vienna"]
[Date "2019.08.17"]
[Round "1.11"]
[White "Finsterwalder, Sebastian"]
[Black "Valsecchi, Alessio"]
[Result "0-1"]
[ECO "A65"]
[WhiteElo "2147"]
[BlackElo "2494"]
[Annotator "ChessBase"]
[PlyCount "106"]
[EventDate "2019.08.17"]
[EventType "swiss"]
[EventCountry "AUT"]
[SourceTitle "playchess.com"]
[Source "ChessBase"]
[SourceQuality "1"]
[TimeControl "40/5400+30:1800+30"]

1. d4 {[%emt 0:00:00]} Nf6 {[%emt 0:00:08]} 2. c4 {[%emt 0:00:00]} c5 {[%emt 0:00:22]} 3. d5 {[%emt 0:00:00]} e6 {[%emt 0:00:06]} 4. Nc3 {[%emt 0:00:05]} exd5 {[%emt 0:00:08]} 5. cxd5 {[%emt 0:00:07]} d6 {[%emt 0:00:09]} 6. e4 {[%emt 0:00:17]} g6 {[%emt 0:00:08]} 7. Bd3 {[%emt 0:00:33]} Bg7 {[%emt 0:00:14]} 8. h3 {[%emt 0:00:19]} O-O {[%emt 0:01:13]} 9. Bg5 {[%emt 0:00:15]} h6 {[%emt 0:00:56]} 10. Be3 {[%emt 0:00:14]} Na6 {[%emt 0:03:41]} 11. Nge2 {[%emt 0:03:19]} Nc7 {[%emt 0:01:23]} 12. a4 {[%emt 0:02:04]} b6 {[%emt 0:07:48]} 13. O-O {[%emt 0:03:45]} Ba6 {[%emt 0:00:30]} 14. Bc2 {[%emt 0:02:04]} Nd7 {[%emt 0:12:51]} 15. Re1 {[%emt 0:14:19]} Qh4 {[%emt 0:08:48]} 16. f4 {[%emt 0:09:47]} Rae8 {[%emt 0:02:04]} 17. Bf2 {[%emt 0:00:57]} Qd8 {[%emt 0:02:50]} 18. Qd2 {[%emt 0:06:42]} h5 {[%emt 0:09:02]} 19. Kh2 {[%emt 0:03:16]} Bh6 {[%emt 0:02:06]} 20. Be3 {[%emt 0:01:50]} Nf6 {[%emt 0:08:45]} 21. Ng1 {[%emt 0:09:23]} h4 {[%emt 0:08:54]} 22. Nf3 {[%emt 0:01:39]} Nh5 {[%emt 0:00:21]} 23. Rad1 {[%emt 0:07:21]} f5 {[%emt 0:03:42]} 24. e5 {[%emt 0:02:45]} Bb7 {[%emt 0:00:50]} 25. e6 {[%emt 0:03:16]} a6 {[%emt 0:00:47]} 26. Bb3 {[%emt 0:11:10]} Qe7 {[%emt 0:02:17]} 27. Ne5 {[%emt 0:01:37]} Kh7 {[%emt 0:00:46]} 28. Nd7 {[%emt 0:02:31]} b5 {[%emt 0:01:04]} 29. Nxf8+ {[%emt 0:00:55]} Rxf8 {[%emt 0:00:18]} 30. axb5 {[%emt 0:03:11]} axb5 {[%emt 0:00:28]} 31. Ra1 {[%emt 0:01:08]} Ba6 {[%emt 0:02:52]} 32. Ne2 {[%emt 0:02:07]} Nf6 {[%emt 0:00:39]} 33. Nc3 {[%emt 0:04:58]} b4 {[%emt 0:02:28]} 34. Na4 {[%emt 0:02:07]} c4 {[%emt 0:00:38]} 35. Nc5 {[%emt 0:00:10]} Bb5 {[%emt 0:05:05]} 36. Ba4 {[%emt 0:01:30]} Bxa4 {[%emt 0:02:09]} 37. Rxa4 {[%emt 0:00:02]} Nfxd5 {[%emt 0:00:55]} 38. Nd7 {[%emt 0:01:28]} Re8 {[%emt 0:00:18]} 39. Nb6 {[%emt 0:01:21]} Qxe6 {[%emt 0:02:37]} 40. Ra7 {[%emt 0:00:25]} Kg8 {[%emt 0:02:50]} 41. Nxc4 {[%emt 0:05:34]} Nxe3 {[%emt 0:09:16]} 42. Nxe3 {[%emt 0:00:21]} Bxf4+ {[%emt 0:01:48]} 43. Kh1 {[%emt 0:00:06]} Bxe3 {[%emt 0:00:53]} 44. Qxb4 {[%emt 0:01:01]} Bxa7 {[%emt 0:04:07]} 45. Rxe6 {[%emt 0:00:11]} Rxe6 {[%emt 0:02:09]} 46. Qxh4 {[%emt 0:00:27]} Bb6 {[%emt 0:00:21]} 47. Qd8+ {[%emt 0:03:36]} Kg7 {[%emt 0:00:54]} 48. g4 {[%emt 0:01:42]} f4 {[%emt 0:02:04]} 49. g5 {[%emt 0:01:03]} Nd5 {[%emt 0:04:26]} 50. Qd7+ {[%emt 0:03:59]} Re7 {[%emt 0:00:02]} 51. Qxd6 {[%emt 0:00:20]} f3 {[%emt 0:00:39]} 52. Qxd5 {[%emt 0:00:38]} Re1+ {[%emt 0:00:06]} 53. Kh2 {[%emt 0:00:04]} Bc7+ {[%emt 0:00:04]} 0-1

[Event "Vienna Chess Open 2019"]
[Site "Vienna"]
[Date "2019.08.17"]
[Round "1.11"]
[White "Van Egmond, Rogier"]
[Black "Buckels, Valentin"]
[Result "0-1"]
[ECO "A13"]
[WhiteElo "2134"]
[BlackElo "2453"]
[Annotator "ChessBase"]
[PlyCount "60"]
[EventDate "2019.08.17"]
[EventType "swiss"]
[EventCountry "AUT"]
[SourceTitle "playchess.com"]
[Source "ChessBase"]
[SourceQuality "1"]
[TimeControl "40/5400+30:1800+30"]

1. c4 {[%emt 0:00:00]} e6 {[%emt 0:00:00]} 2. Nc3 {[%emt 0:00:00]} d5 {[%emt 0:00:00]} 3. e3 {[%emt 0:00:00]} Nf6 {[%emt 0:00:52]} 4. Nf3 {[%emt 0:00:12]} b6 {[%emt 0:01:28]} 5. cxd5 {[%emt 0:01:02]} exd5 {[%emt 0:00:26]} 6. d4 {[%emt 0:02:48]} Bd6 {[%emt 0:01:38]} 7. Bd3 {[%emt 0:00:35]} O-O {[%emt 0:00:48]} 8. O-O {[%emt 0:00:09]} Ba6 {[%emt 0:08:38]} 9. Ne5 {[%emt 0:08:15]} Bxd3 {[%emt 0:05:35]} 10. Qxd3 {[%emt 0:00:12]} Re8 {[%emt 0:02:54]} 11. f4 {[%emt 0:01:00]} Bb4 {[%emt 0:01:23]} 12. Ne2 {[%emt 0:03:30]} Ne4 {[%emt 0:07:09]} 13. a3 {[%emt 0:00:14]} Bf8 {[%emt 0:00:37]} 14. Nc3 {[%emt 0:03:18]} f6 {[%emt 0:04:39]} 15. Nxe4 {[%emt 0:07:28]} fxe5 {[%emt 0:00:08]} 16. Nc3 {[%emt 0:06:11]} exd4 {[%emt 0:04:50]} 17. exd4 {[%emt 0:09:28]} c6 {[%emt 0:02:13]} 18. b4 {[%emt 0:01:57]} Nd7 {[%emt 0:01:40]} 19. f5 {[%emt 0:05:55]} b5 {[%emt 0:04:56]} 20. Bd2 {[%emt 0:04:12]} Bd6 {[%emt 0:04:00]} 21. Rae1 {[%emt 0:04:57]} Nf6 {[%emt 0:03:00]} 22. Rxe8+ {[%emt 0:01:34]} Qxe8 {[%emt 0:00:23]} 23. Bg5 {[%emt 0:05:12]} Bxh2+ {[%emt 0:06:04]} 24. Kxh2 {[%emt 0:04:12]} Qh5+ {[%emt 0:00:12]} 25. Kg1 {[%emt 0:01:34]} Qxg5 {[%emt 0:00:21]} 26. Re1 {[%emt 0:00:46]} Ng4 {[%emt 0:02:44]} 27. Qg3 {[%emt 0:14:03]} Rf8 {[%emt 0:01:30]} 28. Nd1 {[%emt 0:02:05]} Qd2 {[%emt 0:07:48]} 29. Ne3 {[%emt 0:01:40]} Re8 {[%emt 0:01:11]} 30. f6 {[%emt 0:00:51]} Nxf6 {[%emt 0:00:38]} 0-1

[Event "Vienna Chess Open 2019"]
[Site "Vienna"]
[Date "2019.08.17"]
[Round "1.11"]
[White "Cremer, Jochen"]
[Black "Ravi, Teja S."]
[Result "0-1"]
[ECO "B15"]
[WhiteElo "2128"]
[BlackElo "2420"]
[Annotator "NA"]
[PlyCount "94"]
[EventDate "2019.08.17"]
[EventType "swiss"]
[EventCountry "AUT"]
[SourceTitle "playchess.com"]
[Source "ChessBase"]
[SourceQuality "1"]
[TimeControl "40/5400+30:1800+30"]

1. e4 {[%emt 0:00:00]} c6 {[%emt 0:00:03]} 2. d4 {[%emt 0:00:00]} d5 {[%emt 0:00:04]} 3. Nc3 {[%emt 0:00:00]} dxe4 {[%emt 0:00:04]} 4. Nxe4 {[%emt 0:00:00]} Nf6 {[%emt 0:01:24]} 5. Nxf6+ {[%emt 0:00:01]} exf6 {[%emt 0:00:06]} 6. c3 {[%emt 0:01:18]} Bd6 {[%emt 0:00:06]} 7. Bd3 {[%emt 0:00:28]} O-O {[%emt 0:00:08]} 8. Ne2 {[%emt 0:00:32]} Re8 {[%emt 0:00:09]} 9. O-O {[%emt 0:06:47]} Nd7 {[%emt 0:03:19]} 10. Bf4 {[%emt 0:10:32]} Nf8 {[%emt 0:02:19]} 11. Bxd6 {[%emt 0:05:20]} Qxd6 {[%emt 0:00:05]} 12. Ng3 {[%emt 0:00:36]} Be6 {[%emt 0:12:08]} 13. Qd2 {[%emt 0:04:30]} Rad8 {[%emt 0:02:14]} 14. Rfe1 {[%emt 0:07:39]} b6 {[%emt 0:02:36]} 15. Qc2 {[%emt 0:02:02]} Ng6 {[%emt 0:02:53]} 16. Nf5 {[%emt 0:09:08]} Qc7 {[%emt 0:05:50]} 17. g3 {[%emt 0:00:49]} h5 {[%emt 0:05:34]} 18. Ne3 {[%emt 0:06:18]} Nf8 {[%emt 0:01:19]} 19. Be4 {[%emt 0:05:52]} g6 {[%emt 0:00:42]} 20. Ng2 {[%emt 0:07:48]} c5 {[%emt 0:05:11]} 21. dxc5 {[%emt 0:01:34]} Qxc5 {[%emt 0:00:57]} 22. Nf4 {[%emt 0:01:05]} Bg4 {[%emt 0:04:23]} 23. h3 {[%emt 0:05:05]} Bc8 {[%emt 0:00:14]} 24. Rad1 {[%emt 0:01:27]} Qe5 {[%emt 0:12:40]} 25. Re3 {[%emt 0:07:22]} Qb8 {[%emt 0:03:35]} 26. Rxd8 {[%emt 0:03:00]} Rxd8 {[%emt 0:00:02]} 27. Bd5 {[%emt 0:03:44]} Bb7 {[%emt 0:07:13]} 28. Bb3 Re8 {[%emt 0:03:46]} 29. Qe2 {[%emt 0:07:20]} Rxe3 {[%emt 0:00:25]} 30. Qxe3 {[%emt 0:00:01]} Qe5 {[%emt 0:01:47]} 31. Qe2 {[%emt 0:02:27]} Kg7 {[%emt 0:00:41]} 32. Kh2 {[%emt 0:01:02]} h4 {[%emt 0:01:23]} 33. Qxe5 {[%emt 0:01:35]} hxg3+ {[%emt 0:00:28]} 34. Kxg3 {[%emt 0:00:29]} fxe5 {[%emt 0:00:08]} 35. Nd5 {[%emt 0:00:34]} Ne6 {[%emt 0:00:41]} 36. Ne3 {[%emt 0:00:59]} Nc5 {[%emt 0:04:05]} 37. Bc2 {[%emt 0:00:01]} f5 {[%emt 0:00:16]} 38. Nc4 {[%emt 0:00:31]} Kf6 {[%emt 0:02:58]} 39. Nd6 {[%emt 0:00:28]} Bd5 {[%emt 0:02:35]} 40. b3 {[%emt 0:01:02]} f4+ {[%emt 0:07:35]} 41. Kh2 {[%emt 0:02:42]} e4 {[%emt 0:03:42]} 42. Nc8 {[%emt 0:08:47]} Nd3 {[%emt 0:07:17]} 43. Kg1 {[%emt 0:01:54]} f3 {[%emt 0:00:42]} 44. Nxa7 {[%emt 0:13:11]} Be6 {[%emt 0:00:13]} 45. Nb5 {[%emt 0:04:38]} e3 {[%emt 0:00:21]} 46. fxe3 {[%emt 0:00:23]} f2+ {[%emt 0:00:04]} 47. Kg2 {[%emt 0:00:06]} Bxh3+ {[%emt 0:00:09]} 0-1

[Event "Vienna Chess Open 2019"]
[Site "Vienna"]
[Date "2019.08.17"]
[Round "1.12"]
[White "Cvitan, Ognjen"]
[Black "Helmer, Christoph"]
[Result "1-0"]
[ECO "E54"]
[WhiteElo "2493"]
[BlackElo "2146"]
[Annotator "ChessBase"]
[PlyCount "84"]
[EventDate "2019.08.17"]
[EventType "swiss"]
[EventCountry "AUT"]
[SourceTitle "playchess.com"]
[Source "ChessBase"]
[SourceQuality "1"]
[TimeControl "40/5400+30:1800+30"]

1. d4 Nf6 2. c4 {[%emt 0:00:38]} e6 {[%emt 0:00:13]} 3. Nc3 {[%emt 0:01:11]} Bb4 {[%emt 0:01:27]} 4. e3 {[%emt 0:00:45]} O-O {[%emt 0:00:07]} 5. Bd3 {[%emt 0:00:29]} d5 {[%emt 0:06:17]} 6. Nf3 {[%emt 0:02:51]} dxc4 {[%emt 0:06:26]} 7. Bxc4 {[%emt 0:01:30]} c5 {[%emt 0:00:16]} 8. O-O {[%emt 0:00:22]} b6 {[%emt 0:03:29]} 9. Qe2 {[%emt 0:03:18]} Bb7 {[%emt 0:03:38]} 10. Rd1 {[%emt 0:00:40]} Qe7 {[%emt 0:11:54]} 11. Bd2 {[%emt 0:04:22]} Nbd7 {[%emt 0:06:37]} 12. a3 {[%emt 0:01:26]} Bxc3 {[%emt 0:00:30]} 13. Bxc3 {[%emt 0:00:07]} Ne4 {[%emt 0:03:09]} 14. Be1 {[%emt 0:00:14]} Rfd8 {[%emt 0:00:58]} 15. Rac1 {[%emt 0:01:07]} e5 {[%emt 0:18:55]} 16. Bb5 {[%emt 0:03:46]} Ng5 {[%emt 0:06:26]} 17. Nxe5 {[%emt 0:10:32]} Nxe5 {[%emt 0:06:25]} 18. dxe5 {[%emt 0:00:16]} Qxe5 {[%emt 0:01:36]} 19. f3 {[%emt 0:00:44]} Ne6 {[%emt 0:01:42]} 20. Bh4 {[%emt 0:00:55]} Rxd1+ {[%emt 0:01:58]} 21. Rxd1 {[%emt 0:01:45]} a6 {[%emt 0:00:09]} 22. Bd3 {[%emt 0:00:45]} b5 {[%emt 0:00:47]} 23. Bg3 {[%emt 0:01:01]} Qf6 {[%emt 0:00:19]} 24. Bb1 {[%emt 0:00:43]} Rd8 {[%emt 0:00:43]} 25. Rxd8+ {[%emt 0:00:13]} Qxd8 {[%emt 0:00:06]} 26. Qd3 {[%emt 0:00:10]} Qxd3 {[%emt 0:00:23]} 27. Bxd3 {[%emt 0:00:01]} c4 {[%emt 0:01:20]} 28. Bc2 {[%emt 0:00:05]} g6 {[%emt 0:00:49]} 29. Be5 {[%emt 0:00:41]} Kf8 {[%emt 0:00:12]} 30. Bf6 {[%emt 0:00:22]} Ke8 {[%emt 0:00:47]} 31. Kf2 {[%emt 0:00:06]} Kd7 {[%emt 0:00:17]} 32. e4 {[%emt 0:00:17]} Nc5 {[%emt 0:02:07]} 33. Ke3 {[%emt 0:00:11]} Ke6 {[%emt 0:00:19]} 34. Bd4 {[%emt 0:00:08]} Nd7 {[%emt 0:01:42]} 35. h4 {[%emt 0:01:14]} Ne5 {[%emt 0:00:33]} 36. Bxe5 {[%emt 0:00:54]} Kxe5 {[%emt 0:00:08]} 37. f4+ {[%emt 0:00:04]} Kd6 {[%emt 0:00:20]} 38. Kd4 {[%emt 0:00:16]} f6 {[%emt 0:01:15]} 39. g4 {[%emt 0:00:09]} Bc8 {[%emt 0:01:21]} 40. g5 {[%emt 0:00:08]} f5 {[%emt 0:02:13]} 41. exf5 {[%emt 0:32:13]} gxf5 {[%emt 0:30:08]} 42. h5 {[%emt 0:00:06]} Be6 {[%emt 0:00:43]} 1-0

[Event "Vienna Chess Open 2019"]
[Site "Vienna"]
[Date "2019.08.17"]
[Round "1.12"]
[White "Haldorsen, Benjamin"]
[Black "Wecker, Martin"]
[Result "1-0"]
[ECO "B40"]
[WhiteElo "2452"]
[BlackElo "2134"]
[Annotator "ChessBase"]
[PlyCount "43"]
[EventDate "2019.08.17"]
[EventType "swiss"]
[EventCountry "AUT"]
[SourceTitle "playchess.com"]
[Source "ChessBase"]
[SourceQuality "1"]
[TimeControl "40/5400+30:1800+30"]

1. e4 {[%emt 0:00:00]} c5 {[%emt 0:00:00]} 2. Nf3 {[%emt 0:00:32]} e6 {[%emt 0:00:00]} 3. b3 {[%emt 0:00:55]} a6 {[%emt 0:01:20]} 4. Bb2 {[%emt 0:00:34]} Nc6 {[%emt 0:00:15]} 5. c4 {[%emt 0:01:48]} Qc7 {[%emt 0:00:48]} 6. g3 {[%emt 0:01:12]} Nf6 {[%emt 0:05:35]} 7. e5 {[%emt 0:01:38]} Ng4 {[%emt 0:00:13]} 8. Qe2 {[%emt 0:00:04]} b6 {[%emt 0:06:21]} 9. Bg2 {[%emt 0:05:43]} Bb7 {[%emt 0:00:25]} 10. O-O {[%emt 0:00:08]} h5 {[%emt 0:15:38]} 11. Re1 {[%emt 0:07:34]} Be7 {[%emt 0:07:10]} 12. Nc3 {[%emt 0:02:28]} Nh6 {[%emt 0:04:08]} 13. Nd5 {[%emt 0:13:42]} Qd8 {[%emt 0:10:12]} 14. Nxe7 {[%emt 0:01:58]} Qxe7 {[%emt 0:00:07]} 15. d4 {[%emt 0:01:39]} O-O-O {[%emt 0:22:07]} 16. d5 {[%emt 0:04:57]} exd5 {[%emt 0:00:47]} 17. cxd5 {[%emt 0:00:06]} Nb4 {[%emt 0:00:22]} 18. d6 {[%emt 0:00:19]} Qe6 {[%emt 0:01:09]} 19. a3 {[%emt 0:01:40]} Nc6 {[%emt 0:03:22]} 20. b4 {[%emt 0:00:14]} cxb4 {[%emt 0:03:59]} 21. axb4 {[%emt 0:03:51]} b5 {[%emt 0:03:11]} 22. Qe3 {[%emt 0:00:55]} 1-0

[Event "Vienna Chess Open 2019"]
[Site "Vienna"]
[Date "2019.08.17"]
[Round "1.12"]
[White "Subelj, Jan"]
[Black "Zenari, Marco"]
[Result "1/2-1/2"]
[ECO "B50"]
[WhiteElo "2418"]
[BlackElo "2128"]
[Annotator "NA"]
[PlyCount "85"]
[EventDate "2019.08.17"]
[EventType "swiss"]
[EventCountry "AUT"]
[SourceTitle "playchess.com"]
[Source "ChessBase"]
[SourceQuality "1"]
[TimeControl "40/5400+30:1800+30"]

1. e4 {[%emt 0:00:00]} c5 {[%emt 0:00:00]} 2. Nf3 {[%emt 0:00:07]} d6 {[%emt 0:00:00]} 3. c3 {[%emt 0:01:22]} Nf6 {[%emt 0:01:52]} 4. Be2 {[%emt 0:00:27]} Nc6 {[%emt 0:01:54]} 5. d4 {[%emt 0:00:45]} cxd4 {[%emt 0:06:52]} 6. cxd4 {[%emt 0:00:13]} Nxe4 {[%emt 0:10:26]} 7. d5 {[%emt 0:00:11]} Qa5+ {[%emt 0:00:11]} 8. Nc3 {[%emt 0:00:07]} Nxc3 {[%emt 0:06:29]} 9. bxc3 {[%emt 0:00:08]} Nb8 {[%emt 0:07:14]} 10. O-O {[%emt 0:00:28]} g6 {[%emt 0:15:13]} 11. Qd4 {[%emt 0:06:41]} f6 {[%emt 0:10:09]} 12. h4 {[%emt 0:27:08]} Nd7 {[%emt 0:06:17]} 13. h5 {[%emt 0:00:47]} Ne5 {[%emt 0:03:14]} 14. Nxe5 {[%emt 0:03:08]} dxe5 {[%emt 0:00:17]} 15. Qh4 {[%emt 0:04:54]} g5 {[%emt 0:05:54]} 16. Qg3 {[%emt 0:06:41]} Bh6 {[%emt 0:01:53]} 17. c4 {[%emt 0:00:56]} O-O {[%emt 0:01:58]} 18. Ba3 {[%emt 0:01:52]} Rf7 {[%emt 0:06:36]} 19. c5 {[%emt 0:01:09]} f5 {[%emt 0:04:10]} 20. Qb3 {[%emt 0:01:22]} Qd8 {[%emt 0:03:29]} 21. Bc4 {[%emt 0:02:34]} Qe8 {[%emt 0:00:50]} 22. d6 {[%emt 0:01:31]} e6 {[%emt 0:00:09]} 23. Bb2 {[%emt 0:03:28]} e4 {[%emt 0:02:19]} 24. f3 {[%emt 0:00:43]} f4 {[%emt 0:00:38]} 25. fxe4 {[%emt 0:00:43]} g4 {[%emt 0:00:10]} 26. Be2 {[%emt 0:01:48]} g3 {[%emt 0:00:42]} 27. Be5 {[%emt 0:00:29]} Qd8 {[%emt 0:00:49]} 28. Bxf4 {[%emt 0:01:02]} Rxf4 {[%emt 0:02:10]} 29. Qxg3+ {[%emt 0:00:14]} Qg5 {[%emt 0:00:05]} 30. Qxg5+ {[%emt 0:01:28]} Bxg5 {[%emt 0:00:07]} 31. Rxf4 {[%emt 0:01:00]} Bxf4 {[%emt 0:00:06]} 32. Bb5 {[%emt 0:00:05]} Be3+ {[%emt 0:00:56]} 33. Kh2 {[%emt 0:00:43]} Bxc5 {[%emt 0:00:37]} 34. Rd1 {[%emt 0:00:45]} a6 {[%emt 0:00:42]} 35. d7 {[%emt 0:00:05]} Bxd7 {[%emt 0:00:07]} 36. Bxd7 {[%emt 0:00:06]} Kf7 {[%emt 0:00:39]} 37. Ba4 {[%emt 0:00:17]} b5 {[%emt 0:00:03]} 38. Bc2 {[%emt 0:03:10]} Ke7 {[%emt 0:02:08]} 39. e5 {[%emt 0:03:28]} h6 {[%emt 0:00:21]} 40. Be4 {[%emt 0:00:23]} Rd8 {[%emt 0:01:11]} 41. Rxd8 {[%emt 0:30:25]} Kxd8 {[%emt 0:30:04]} 42. Kg3 {[%emt 0:00:06]} a5 {[%emt 0:00:32]} 43. Bc6 {[%emt 0:00:43]} 1/2-1/2

[Event "Vienna Chess Open 2019"]
[Site "Vienna"]
[Date "2019.08.18"]
[Round "2.1"]
[White "Dastan, Muhammed Batuhan"]
[Black "Modler, Andreas"]
[Result "1-0"]
[ECO "B43"]
[WhiteElo "2582"]
[BlackElo "2269"]
[Annotator "ChessBase"]
[PlyCount "49"]
[EventDate "2019.08.17"]
[EventType "swiss"]
[EventCountry "AUT"]
[SourceTitle "playchess.com"]
[Source "ChessBase"]
[SourceQuality "1"]
[TimeControl "40/5400+30:1800+30"]

1. e4 {[%emt 0:00:00]} c5 {[%emt 0:01:04]} 2. Nf3 {[%emt 0:00:00]} e6 {[%emt 0:00:36]} 3. d4 {[%emt 0:00:00]} cxd4 {[%emt 0:00:46]} 4. Nxd4 {[%emt 0:00:00]} a6 {[%emt 0:00:06]} 5. Nc3 {[%emt 0:00:05]} Qc7 {[%emt 0:00:13]} 6. Bd3 {[%emt 0:00:06]} Nf6 {[%emt 0:00:18]} 7. f4 {[%emt 0:00:14]} d6 {[%emt 0:03:31]} 8. O-O {[%emt 0:00:07]} g6 {[%emt 0:01:04]} 9. Kh1 {[%emt 0:10:40]} Bg7 {[%emt 0:03:04]} 10. Qe1 {[%emt 0:03:30]} O-O {[%emt 0:00:27]} 11. f5 {[%emt 0:05:09]} b5 {[%emt 0:11:16]} 12. a3 {[%emt 0:11:41]} e5 {[%emt 0:02:36]} 13. Nf3 {[%emt 0:03:12]} Bb7 {[%emt 0:00:14]} 14. Qh4 {[%emt 0:02:36]} Nbd7 {[%emt 0:01:35]} 15. Bh6 {[%emt 0:03:56]} Rae8 {[%emt 0:04:49]} 16. Rae1 {[%emt 0:10:28]} Bxh6 {[%emt 0:10:47]} 17. Qxh6 {[%emt 0:00:55]} Re7 {[%emt 0:09:28]} 18. Ng5 {[%emt 0:02:28]} Rfe8 {[%emt 0:03:44]} 19. Re3 {[%emt 0:05:05]} d5 {[%emt 0:03:27]} 20. Rh3 {[%emt 0:01:17]} Qb6 {[%emt 0:02:45]} 21. Nxh7 {[%emt 0:01:33]} Ng4 {[%emt 0:03:05]} 22. Qh4 {[%emt 0:00:08]} dxe4 {[%emt 0:01:10]} 23. Ng5 {[%emt 0:00:41]} Qf6 {[%emt 0:01:13]} 24. fxg6 {[%emt 0:00:13]} Qg7 {[%emt 0:01:56]} 25. gxf7+ {[%emt 0:00:18]} 1-0

[Event "Vienna Chess Open 2019"]
[Site "Vienna"]
[Date "2019.08.18"]
[Round "2.1"]
[White "Schreiner, Peter"]
[Black "Fuchs, Florian"]
[Result "1/2-1/2"]
[ECO "D37"]
[WhiteElo "2481"]
[BlackElo "2235"]
[Annotator "ChessBase"]
[PlyCount "49"]
[EventDate "2019.08.17"]
[EventType "swiss"]
[EventCountry "AUT"]
[SourceTitle "playchess.com"]
[Source "ChessBase"]
[SourceQuality "1"]
[TimeControl "40/5400+30:1800+30"]

1. d4 {[%emt 0:00:00]} Nf6 {[%emt 0:00:00]} 2. c4 {[%emt 0:00:00]} e6 {[%emt 0:00:00]} 3. Nc3 {[%emt 0:00:54]} d5 {[%emt 0:00:15]} 4. Nf3 {[%emt 0:00:31]} Be7 {[%emt 0:01:09]} 5. g3 {[%emt 0:01:46]} O-O {[%emt 0:02:13]} 6. Bg2 {[%emt 0:00:13]} dxc4 {[%emt 0:02:08]} 7. Ne5 {[%emt 0:01:57]} c5 {[%emt 0:04:06]} 8. dxc5 {[%emt 0:01:13]} Qxd1+ {[%emt 0:02:00]} 9. Nxd1 {[%emt 0:00:22]} Bxc5 {[%emt 0:01:37]} 10. O-O {[%emt 0:01:15]} Nd5 {[%emt 0:06:37]} 11. Nxc4 {[%emt 0:02:24]} Nc6 {[%emt 0:01:00]} 12. Be3 {[%emt 0:30:27]} Nxe3 {[%emt 0:04:36]} 13. Ndxe3 {[%emt 0:00:15]} Bd7 {[%emt 0:05:42]} 14. a3 {[%emt 0:06:49]} Rfd8 {[%emt 0:05:34]} 15. b4 {[%emt 0:00:31]} Be7 {[%emt 0:06:56]} 16. Rfd1 {[%emt 0:12:50]} Be8 {[%emt 0:12:28]} 17. Kf1 {[%emt 0:03:27]} Rac8 {[%emt 0:06:27]} 18. Rxd8 {[%emt 0:16:18]} Nxd8 {[%emt 0:06:42]} 19. Be4 {[%emt 0:02:08]} f5 {[%emt 0:12:13]} 20. Bc2 {[%emt 0:02:15]} b5 {[%emt 0:03:49]} 21. Na5 {[%emt 0:01:40]} Bf6 {[%emt 0:02:14]} 22. Rd1 {[%emt 0:07:04]} Kf8 {[%emt 0:02:25]} 23. Bb3 {[%emt 0:02:17]} Ke7 {[%emt 0:00:50]} 24. Nc2 {[%emt 0:01:02]} Rc3 {[%emt 0:05:11]} 25. Nd4 {[%emt 0:00:29]} 1/2-1/2